[Event "Late-Titled-Tuesday-Blitz-February-27-2024"]
[Site "Chess.com"]
[Date "2024.02.27"]
[Round "6"]
[White "xakevicius91"]
[Black "IlanSchnaider"]
[Result "1-0"]
[WhiteElo "2573"]
[BlackElo "2710"]
[TimeControl "180+1"]
[EndTime "15:06:09 PST"]
[Termination "xakevicius91 won by checkmate"]

1. e4 {[%clk 0:03:00.3]} 1... c5 {[%clk 0:02:59.3]} 2. Nf3 {[%clk 0:02:59]} 2...
d6 {[%clk 0:02:59]} 3. Bb5+ {[%clk 0:02:57.9]} 3... Bd7 {[%clk 0:02:58.7]} 4. a4
{[%clk 0:02:56]} 4... Nf6 {[%clk 0:02:55.9]} 5. Nc3 {[%clk 0:02:55.7]} 5... e6
{[%clk 0:02:48.5]} 6. O-O {[%clk 0:02:55.2]} 6... Be7 {[%clk 0:02:37.6]} 7. d4
{[%clk 0:02:54.9]} 7... cxd4 {[%clk 0:02:34.2]} 8. Nxd4 {[%clk 0:02:55.8]} 8...
O-O {[%clk 0:02:26.7]} 9. Be3 {[%clk 0:02:55.4]} 9... a6 {[%clk 0:02:22.9]} 10.
Be2 {[%clk 0:02:54.9]} 10... Nc6 {[%clk 0:02:07]} 11. f4 {[%clk 0:02:54.7]}
11... Rc8 {[%clk 0:01:45.2]} 12. Kh1 {[%clk 0:02:53.3]} 12... d5 {[%clk
0:01:29.3]} 13. e5 {[%clk 0:02:47.5]} 13... Ne4 {[%clk 0:01:14.8]} 14. Nxe4
{[%clk 0:02:46]} 14... dxe4 {[%clk 0:01:15.7]} 15. c3 {[%clk 0:02:46.2]} 15...
Nxd4 {[%clk 0:00:49.8]} 16. Bxd4 {[%clk 0:02:37.6]} 16... Bc6 {[%clk 0:00:47.3]}
17. Qe1 {[%clk 0:02:36.5]} 17... Bd5 {[%clk 0:00:41.9]} 18. f5 {[%clk
0:02:33.1]} 18... exf5 {[%clk 0:00:40.9]} 19. Rxf5 {[%clk 0:02:33.3]} 19... Bc5
{[%clk 0:00:38.7]} 20. Rd1 {[%clk 0:02:17.7]} 20... Qb6 {[%clk 0:00:32.1]} 21.
a5 {[%clk 0:02:11.4]} 21... Qc6 {[%clk 0:00:27.2]} 22. Qg3 {[%clk 0:02:03.1]}
22... Bxd4 {[%clk 0:00:19.9]} 23. Rxd4 {[%clk 0:02:04]} 23... Be6 {[%clk
0:00:15.9]} 24. Rf4 {[%clk 0:01:40.7]} 24... Rfd8 {[%clk 0:00:14.5]} 25. Rfxe4
{[%clk 0:01:37.6]} 25... Rxd4 {[%clk 0:00:13.1]} 26. Rxd4 {[%clk 0:01:38.5]}
26... Qc5 {[%clk 0:00:13.4]} 27. h4 {[%clk 0:01:30.5]} 27... Qxa5 {[%clk
0:00:12.7]} 28. Kh2 {[%clk 0:01:22.6]} 28... Qa2 {[%clk 0:00:08.8]} 29. Qg5
{[%clk 0:01:17.4]} 29... h6 {[%clk 0:00:06.4]} 30. Rd8+ {[%clk 0:01:14.7]} 30...
Rxd8 {[%clk 0:00:05.2]} 31. Qxd8+ {[%clk 0:01:15.6]} 31... Kh7 {[%clk 0:00:06]}
32. Bd3+ {[%clk 0:01:15.8]} 32... g6 {[%clk 0:00:06.4]} 33. h5 {[%clk
0:01:14.6]} 33... Qd5 {[%clk 0:00:05.2]} 34. hxg6+ {[%clk 0:01:14.2]} 34... fxg6
{[%clk 0:00:06.1]} 35. Qe7+ {[%clk 0:01:09.7]} 35... Bf7 {[%clk 0:00:06.4]} 36.
Qf6 {[%clk 0:00:58.3]} 36... Kg8 {[%clk 0:00:01.4]} 37. Bxg6 {[%clk 0:00:55.2]}
37... Be6 {[%clk 0:00:01.3]} 38. Bf5 {[%clk 0:00:46.9]} 38... Bxf5 {[%clk
0:00:01.3]} 39. Qxf5 {[%clk 0:00:47]} 39... b5 {[%clk 0:00:01.5]} 40. Qg6+
{[%clk 0:00:45.4]} 40... Kf8 {[%clk 0:00:02]} 41. Qxh6+ {[%clk 0:00:46]} 41...
Ke8 {[%clk 0:00:02.6]} 42. Qf6 {[%clk 0:00:42.4]} 42... Qd2 {[%clk 0:00:02]} 43.
e6 {[%clk 0:00:40.2]} 43... Qd6+ {[%clk 0:00:01.5]} 44. Kh3 {[%clk 0:00:40.6]}
44... Qd3+ {[%clk 0:00:01.8]} 45. g3 {[%clk 0:00:39.8]} 45... Qd1 {[%clk
0:00:01.3]} 46. Qf7+ {[%clk 0:00:38.4]} 46... Kd8 {[%clk 0:00:01.9]} 47. e7+
{[%clk 0:00:39]} 47... Kc7 {[%clk 0:00:02.1]} 48. e8=Q+ {[%clk 0:00:39.6]} 48...
Kb6 {[%clk 0:00:02.5]} 49. Qe3+ {[%clk 0:00:35.5]} 49... Ka5 {[%clk 0:00:02.2]}
50. b4+ {[%clk 0:00:28.1]} 50... Ka4 {[%clk 0:00:02.3]} 51. Qa2# {[%clk
0:00:23.1]} 1-0

[Event "Late-Titled-Tuesday-Blitz-February-27-2024"]
[Site "Chess.com"]
[Date "2024.02.27"]
[Round "6"]
[White "TenisMaster"]
[Black "Evandro_Barbosa"]
[Result "1-0"]
[WhiteElo "2931"]
[BlackElo "2671"]
[TimeControl "180+1"]
[EndTime "15:06:12 PST"]
[Termination "TenisMaster won on time"]

1. e4 {[%clk 0:03:00.9]} 1... c5 {[%clk 0:02:59.1]} 2. Nf3 {[%clk 0:03:00.7]}
2... e6 {[%clk 0:02:58.8]} 3. d4 {[%clk 0:03:00.9]} 3... cxd4 {[%clk 0:02:59]}
4. Nxd4 {[%clk 0:03:01.8]} 4... Nc6 {[%clk 0:02:58.7]} 5. Nc3 {[%clk 0:03:01.3]}
5... d6 {[%clk 0:02:58.8]} 6. Be3 {[%clk 0:02:55.6]} 6... a6 {[%clk 0:02:58.8]}
7. Qd2 {[%clk 0:02:54.9]} 7... Nf6 {[%clk 0:02:58.2]} 8. f3 {[%clk 0:02:46]}
8... Be7 {[%clk 0:02:56.9]} 9. O-O-O {[%clk 0:02:44.3]} 9... O-O {[%clk
0:02:56.6]} 10. g4 {[%clk 0:02:44.9]} 10... Nxd4 {[%clk 0:02:56]} 11. Bxd4
{[%clk 0:02:44.7]} 11... b5 {[%clk 0:02:56.3]} 12. g5 {[%clk 0:02:44.1]} 12...
Nd7 {[%clk 0:02:55.9]} 13. h4 {[%clk 0:02:44.7]} 13... Bb7 {[%clk 0:02:55.5]}
14. Kb1 {[%clk 0:02:43.9]} 14... b4 {[%clk 0:02:55.4]} 15. Ne2 {[%clk
0:02:42.8]} 15... a5 {[%clk 0:02:54]} 16. Ng3 {[%clk 0:02:33.8]} 16... Ne5
{[%clk 0:02:53.1]} 17. Be2 {[%clk 0:02:33.2]} 17... b3 {[%clk 0:02:47.8]} 18.
cxb3 {[%clk 0:02:31.4]} 18... a4 {[%clk 0:02:47.7]} 19. b4 {[%clk 0:02:31.4]}
19... a3 {[%clk 0:02:47.2]} 20. b3 {[%clk 0:02:27.6]} 20... Qb8 {[%clk
0:02:27.7]} 21. Nh5 {[%clk 0:02:24.4]} 21... Rd8 {[%clk 0:02:22.1]} 22. Rhg1
{[%clk 0:02:12.7]} 22... d5 {[%clk 0:02:12.5]} 23. Nf6+ {[%clk 0:01:25.2]} 23...
Kh8 {[%clk 0:02:11.1]} 24. exd5 {[%clk 0:01:19.2]} 24... Bxd5 {[%clk 0:01:58.3]}
25. Qf4 {[%clk 0:01:14.7]} 25... Nxf3 {[%clk 0:01:01.7]} 26. Qxb8 {[%clk
0:01:02.1]} 26... Raxb8 {[%clk 0:01:00.4]} 27. Nxd5 {[%clk 0:00:40.1]} 27...
Nxd4 {[%clk 0:00:59.3]} 28. Rxd4 {[%clk 0:00:38.3]} 28... exd5 {[%clk
0:00:56.4]} 29. Rgg4 {[%clk 0:00:30.4]} 29... g6 {[%clk 0:00:53.8]} 30. b5
{[%clk 0:00:30]} 30... Bc5 {[%clk 0:00:53.2]} 31. Rd1 {[%clk 0:00:29.2]} 31...
Re8 {[%clk 0:00:47]} 32. Bd3 {[%clk 0:00:28.4]} 32... d4 {[%clk 0:00:43.9]} 33.
Rf4 {[%clk 0:00:25.5]} 33... Rb7 {[%clk 0:00:42.3]} 34. Rf6 {[%clk 0:00:23.9]}
34... Re3 {[%clk 0:00:37.4]} 35. Rc6 {[%clk 0:00:23.7]} 35... Bb4 {[%clk
0:00:36.2]} 36. Bc4 {[%clk 0:00:21.5]} 36... Rd7 {[%clk 0:00:31.4]} 37. b6
{[%clk 0:00:20.8]} 37... d3 {[%clk 0:00:29.3]} 38. Rc7 {[%clk 0:00:20.3]} 38...
Rd8 {[%clk 0:00:14.5]} 39. b7 {[%clk 0:00:20.5]} 39... Ree8 {[%clk 0:00:06.8]}
40. Bb5 {[%clk 0:00:18.9]} 40... Ba5 {[%clk 0:00:03]} 41. Rxf7 {[%clk
0:00:14.3]} 41... Re2 {[%clk 0:00:02.3]} 42. Rxd3 {[%clk 0:00:10.7]} 42... Re1+
{[%clk 0:00:01.9]} 43. Kc2 {[%clk 0:00:11]} 43... Rb8 {[%clk 0:00:01.9]} 44.
Rdd7 {[%clk 0:00:08.6]} 1-0

[Event "Late-Titled-Tuesday-Blitz-February-27-2024"]
[Site "Chess.com"]
[Date "2024.02.27"]
[Round "6"]
[White "Jahonas"]
[Black "MiguelEduardoGB"]
[Result "1-0"]
[WhiteElo "2371"]
[BlackElo "2154"]
[TimeControl "180+1"]
[EndTime "15:06:13 PST"]
[Termination "Jahonas won by resignation"]

1. d4 {[%clk 0:03:00.9]} 1... d5 {[%clk 0:02:57.4]} 2. c4 {[%clk 0:03:01.2]}
2... c6 {[%clk 0:02:53.8]} 3. Nc3 {[%clk 0:03:01.3]} 3... Nf6 {[%clk 0:02:52.9]}
4. Nf3 {[%clk 0:03:01.6]} 4... Bf5 {[%clk 0:02:49.5]} 5. cxd5 {[%clk 0:03:00.7]}
5... cxd5 {[%clk 0:02:49.4]} 6. Bf4 {[%clk 0:02:58.4]} 6... a6 {[%clk
0:02:49.3]} 7. e3 {[%clk 0:02:58.4]} 7... Nc6 {[%clk 0:02:49.5]} 8. Bd3 {[%clk
0:02:58.1]} 8... Bxd3 {[%clk 0:02:47.1]} 9. Qxd3 {[%clk 0:02:57.9]} 9... e6
{[%clk 0:02:47.8]} 10. O-O {[%clk 0:02:57]} 10... Bd6 {[%clk 0:02:47.9]} 11.
Bxd6 {[%clk 0:02:47]} 11... Qxd6 {[%clk 0:02:46.3]} 12. a3 {[%clk 0:02:46.9]}
12... Rc8 {[%clk 0:02:44.9]} 13. b4 {[%clk 0:02:45.7]} 13... b5 {[%clk
0:02:44.5]} 14. Rfb1 {[%clk 0:02:41.3]} 14... O-O {[%clk 0:02:44.4]} 15. h3
{[%clk 0:02:39.2]} 15... Nd7 {[%clk 0:02:42.1]} 16. Nd2 {[%clk 0:02:37.9]} 16...
Nb6 {[%clk 0:02:42.1]} 17. Nb3 {[%clk 0:02:37.8]} 17... Nc4 {[%clk 0:02:41.4]}
18. Nc5 {[%clk 0:02:37.6]} 18... f5 {[%clk 0:01:57.2]} 19. a4 {[%clk 0:02:31]}
19... f4 {[%clk 0:01:49.7]} 20. axb5 {[%clk 0:02:25.4]} 20... axb5 {[%clk
0:01:06.1]} 21. Nxb5 {[%clk 0:02:22.9]} 21... Qe7 {[%clk 0:01:06.3]} 22. exf4
{[%clk 0:02:09.4]} 22... Rxf4 {[%clk 0:01:05]} 23. Re1 {[%clk 0:02:00.1]} 23...
Nxb4 {[%clk 0:00:39.4]} 24. Qg3 {[%clk 0:01:42.5]} 24... Rf6 {[%clk 0:00:30.8]}
25. Ra7 {[%clk 0:01:35]} 25... Qf8 {[%clk 0:00:20.6]} 26. Nxe6 {[%clk
0:01:31.2]} 26... Rxe6 {[%clk 0:00:19.3]} 27. Rxe6 {[%clk 0:01:30.6]} 27... Nc6
{[%clk 0:00:15.3]} 28. Rc7 {[%clk 0:01:22.7]} 28... Rxc7 {[%clk 0:00:13]} 29.
Nxc7 {[%clk 0:01:20.2]} 29... Nxd4 {[%clk 0:00:12.7]} 30. Re1 {[%clk 0:00:36.1]}
30... Nd2 {[%clk 0:00:12.9]} 31. Qd3 {[%clk 0:00:29.4]} 31... N4f3+ {[%clk
0:00:11.1]} 32. gxf3 {[%clk 0:00:29]} 32... Nxf3+ {[%clk 0:00:12]} 33. Kf1
{[%clk 0:00:25.6]} 33... Nxe1 {[%clk 0:00:12.3]} 34. Qxd5+ {[%clk 0:00:21.5]}
34... Kh8 {[%clk 0:00:12]} 35. Kxe1 {[%clk 0:00:21.2]} 35... Qe7+ {[%clk
0:00:11.2]} 36. Ne6 {[%clk 0:00:21.2]} 36... h6 {[%clk 0:00:10.5]} 37. Qd8+
{[%clk 0:00:21.4]} 37... Qxd8 {[%clk 0:00:10.6]} 38. Nxd8 {[%clk 0:00:22.3]}
38... g5 {[%clk 0:00:11.3]} 39. Ke2 {[%clk 0:00:22.8]} 39... Kg7 {[%clk
0:00:12.2]} 40. Ke3 {[%clk 0:00:23]} 40... Kf6 {[%clk 0:00:13]} 41. Ke4 {[%clk
0:00:23.4]} 41... h5 {[%clk 0:00:11.4]} 42. f3 {[%clk 0:00:23.1]} 42... g4
{[%clk 0:00:11.4]} 43. fxg4 {[%clk 0:00:23.2]} 43... hxg4 {[%clk 0:00:12.3]} 44.
hxg4 {[%clk 0:00:23.6]} 44... Kg5 {[%clk 0:00:13.2]} 45. Kf3 {[%clk 0:00:23.9]}
45... Kg6 {[%clk 0:00:13.4]} 46. Kf4 {[%clk 0:00:24.2]} 46... Kf6 {[%clk
0:00:14.3]} 47. g5+ {[%clk 0:00:24.7]} 47... Kg6 {[%clk 0:00:15.2]} 48. Kg4
{[%clk 0:00:25]} 48... Kg7 {[%clk 0:00:16.1]} 49. Kf5 {[%clk 0:00:25.5]} 49...
Kh7 {[%clk 0:00:17]} 50. g6+ {[%clk 0:00:25.9]} 50... Kh8 {[%clk 0:00:17.9]} 51.
Kf6 {[%clk 0:00:25.9]} 51... Kg8 {[%clk 0:00:18.2]} 52. Ne6 {[%clk 0:00:24.5]}
52... Kh8 {[%clk 0:00:18.4]} 53. Ng5 {[%clk 0:00:22.4]} 53... Kg8 {[%clk
0:00:18.7]} 54. Ne4 {[%clk 0:00:18.7]} 54... Kh8 {[%clk 0:00:19.2]} 55. Ng3
{[%clk 0:00:18.9]} 55... Kg8 {[%clk 0:00:19.2]} 56. Nf5 {[%clk 0:00:18.3]} 56...
Kh8 {[%clk 0:00:19.9]} 57. g7+ {[%clk 0:00:17.8]} 57... Kg8 {[%clk 0:00:20.4]}
58. Ne7+ {[%clk 0:00:17.7]} 58... Kh7 {[%clk 0:00:21.3]} 59. g8=Q+ {[%clk
0:00:18.2]} 1-0

[Event "Late-Titled-Tuesday-Blitz-February-27-2024"]
[Site "Chess.com"]
[Date "2024.02.27"]
[Round "6"]
[White "Goryachkina"]
[Black "Baronessa08"]
[Result "1-0"]
[WhiteElo "2692"]
[BlackElo "2524"]
[TimeControl "180+1"]
[EndTime "15:06:14 PST"]
[Termination "Goryachkina won on time"]

1. e4 {[%clk 0:02:59.7]} 1... c5 {[%clk 0:02:58.8]} 2. Nf3 {[%clk 0:02:59.8]}
2... Nc6 {[%clk 0:02:58.5]} 3. Bb5 {[%clk 0:02:59.2]} 3... e6 {[%clk 0:02:58.1]}
4. Bxc6 {[%clk 0:02:59.1]} 4... bxc6 {[%clk 0:02:58.1]} 5. d3 {[%clk 0:02:59.4]}
5... Ne7 {[%clk 0:02:57]} 6. Qe2 {[%clk 0:02:59.4]} 6... f6 {[%clk 0:02:56.5]}
7. e5 {[%clk 0:02:55.1]} 7... Ng6 {[%clk 0:02:56]} 8. h4 {[%clk 0:02:46.3]} 8...
Qc7 {[%clk 0:02:41.4]} 9. exf6 {[%clk 0:02:20.1]} 9... gxf6 {[%clk 0:02:42.3]}
10. Nc3 {[%clk 0:02:11.7]} 10... Be7 {[%clk 0:02:25.3]} 11. Bd2 {[%clk
0:02:07.6]} 11... d5 {[%clk 0:02:14.2]} 12. O-O-O {[%clk 0:02:01.1]} 12... e5
{[%clk 0:02:08.1]} 13. h5 {[%clk 0:01:53.5]} 13... Nf8 {[%clk 0:02:08]} 14. Nh4
{[%clk 0:01:40]} 14... Ne6 {[%clk 0:02:00.5]} 15. f4 {[%clk 0:01:30.4]} 15...
Nd4 {[%clk 0:01:52.7]} 16. Qf2 {[%clk 0:01:28.9]} 16... Bg4 {[%clk 0:01:51.2]}
17. Rde1 {[%clk 0:01:25.7]} 17... O-O-O {[%clk 0:01:40.1]} 18. Nf3 {[%clk
0:01:06.5]} 18... Bd6 {[%clk 0:01:23.4]} 19. Na4 {[%clk 0:00:47.2]} 19... Rhg8
{[%clk 0:01:14.5]} 20. h6 {[%clk 0:00:34.9]} 20... Rde8 {[%clk 0:01:10.8]} 21.
Rhf1 {[%clk 0:00:33.2]} 21... Bxf3 {[%clk 0:01:08.2]} 22. gxf3 {[%clk
0:00:33.3]} 22... exf4 {[%clk 0:01:06.9]} 23. c3 {[%clk 0:00:21.1]} 23... Nf5
{[%clk 0:00:59.1]} 24. Rxe8+ {[%clk 0:00:18.3]} 24... Rxe8 {[%clk 0:00:58.4]}
25. Re1 {[%clk 0:00:18.2]} 25... Ne3 {[%clk 0:00:57.2]} 26. Kb1 {[%clk 0:00:18]}
26... d4 {[%clk 0:00:39.3]} 27. cxd4 {[%clk 0:00:15.5]} 27... cxd4 {[%clk
0:00:40]} 28. Rc1 {[%clk 0:00:15.7]} 28... Kb8 {[%clk 0:00:34.8]} 29. Qh4 {[%clk
0:00:15.4]} 29... Nd5 {[%clk 0:00:27.6]} 30. Qg4 {[%clk 0:00:13.1]} 30... Re2
{[%clk 0:00:25.1]} 31. Qg8+ {[%clk 0:00:12.5]} 31... Kb7 {[%clk 0:00:25.3]} 32.
Be1 {[%clk 0:00:05.8]} 32... Qe7 {[%clk 0:00:23.5]} 33. Qg7 {[%clk 0:00:03.3]}
33... c5 {[%clk 0:00:12.5]} 34. Bh4 {[%clk 0:00:03.3]} 34... Kc6 {[%clk
0:00:11.8]} 35. Qg8 {[%clk 0:00:03.1]} 35... Qb7 {[%clk 0:00:08.7]} 36. b3
{[%clk 0:00:02]} 36... Nc3+ {[%clk 0:00:07.3]} 37. Nxc3 {[%clk 0:00:02.1]} 37...
dxc3 {[%clk 0:00:08.2]} 38. Rxc3 {[%clk 0:00:02.5]} 38... Be5 {[%clk 0:00:02.6]}
39. Rc2 {[%clk 0:00:02.2]} 39... Rxc2 {[%clk 0:00:01]} 40. Kxc2 {[%clk
0:00:02.5]} 1-0

[Event "Late-Titled-Tuesday-Blitz-February-27-2024"]
[Site "Chess.com"]
[Date "2024.02.27"]
[Round "6"]
[White "protectiago"]
[Black "SocoLoco"]
[Result "0-1"]
[WhiteElo "2076"]
[BlackElo "2213"]
[TimeControl "180+1"]
[EndTime "15:06:14 PST"]
[Termination "SocoLoco won on time"]

1. d4 {[%clk 0:02:58.1]} 1... d5 {[%clk 0:02:59.8]} 2. c4 {[%clk 0:02:57.8]}
2... Nc6 {[%clk 0:02:59.8]} 3. Nf3 {[%clk 0:02:53.6]} 3... Bg4 {[%clk 0:02:59]}
4. Nbd2 {[%clk 0:02:50]} 4... e6 {[%clk 0:02:57.2]} 5. e3 {[%clk 0:02:46.8]}
5... Nf6 {[%clk 0:02:56.9]} 6. Be2 {[%clk 0:02:45.8]} 6... Be7 {[%clk
0:02:56.7]} 7. O-O {[%clk 0:02:42.6]} 7... O-O {[%clk 0:02:56.3]} 8. b3 {[%clk
0:02:41.4]} 8... a5 {[%clk 0:02:55.1]} 9. Bb2 {[%clk 0:02:41.4]} 9... Re8 {[%clk
0:02:55]} 10. Rc1 {[%clk 0:02:41.6]} 10... Ne4 {[%clk 0:02:52.9]} 11. Nxe4
{[%clk 0:02:37.2]} 11... dxe4 {[%clk 0:02:53.8]} 12. Nd2 {[%clk 0:02:37.6]}
12... Bxe2 {[%clk 0:02:54.3]} 13. Qxe2 {[%clk 0:02:38]} 13... f5 {[%clk
0:02:54.7]} 14. a3 {[%clk 0:02:24.9]} 14... Bf6 {[%clk 0:02:45.2]} 15. Rfd1
{[%clk 0:02:05.7]} 15... Ne7 {[%clk 0:02:36.1]} 16. Nf1 {[%clk 0:01:52]} 16...
c6 {[%clk 0:02:34.6]} 17. Bc3 {[%clk 0:01:37.4]} 17... Ng6 {[%clk 0:02:13.1]}
18. Qb2 {[%clk 0:01:36.7]} 18... Qe7 {[%clk 0:02:01.5]} 19. Rd2 {[%clk
0:01:25.6]} 19... Qf7 {[%clk 0:01:44.5]} 20. Rcd1 {[%clk 0:01:24.7]} 20... Red8
{[%clk 0:01:43]} 21. b4 {[%clk 0:01:09.7]} 21... axb4 {[%clk 0:01:33.4]} 22.
axb4 {[%clk 0:01:09.8]} 22... h5 {[%clk 0:01:18.4]} 23. Ng3 {[%clk 0:00:55]}
23... Ne7 {[%clk 0:01:16.2]} 24. Ne2 {[%clk 0:00:46.5]} 24... g5 {[%clk
0:01:14.3]} 25. h4 {[%clk 0:00:36.6]} 25... gxh4 {[%clk 0:01:05.6]} 26. Nf4
{[%clk 0:00:36.6]} 26... Kh7 {[%clk 0:00:51.6]} 27. d5 {[%clk 0:00:08.9]} 27...
Bxc3 {[%clk 0:00:49.7]} 28. Qxc3 {[%clk 0:00:09.3]} 28... cxd5 {[%clk
0:00:49.1]} 29. cxd5 {[%clk 0:00:08.9]} 29... Nxd5 {[%clk 0:00:36.4]} 30. Qe5
{[%clk 0:00:05.9]} 30... Rg8 {[%clk 0:00:14.4]} 31. Nxe6 {[%clk 0:00:04.3]}
31... Nf6 {[%clk 0:00:11.9]} 32. Qxf5+ {[%clk 0:00:04.3]} 32... Qg6 {[%clk
0:00:10.4]} 33. Qxg6+ {[%clk 0:00:03.5]} 33... Kxg6 {[%clk 0:00:09.5]} 34. Nf4+
{[%clk 0:00:03.4]} 34... Kf5 {[%clk 0:00:09.2]} 35. Rd6 {[%clk 0:00:02]} 35...
Rge8 {[%clk 0:00:08.4]} 36. Rb6 {[%clk 0:00:01.8]} 36... Re7 {[%clk 0:00:08.1]}
37. Rdd6 {[%clk 0:00:01.5]} 37... Ne8 {[%clk 0:00:06.1]} 38. Kh2 {[%clk
0:00:02.1]} 38... Nxd6 {[%clk 0:00:04.7]} 39. Rxd6 {[%clk 0:00:02.6]} 39... Ra2
{[%clk 0:00:03.6]} 40. Rd5+ {[%clk 0:00:02.7]} 40... Kf6 {[%clk 0:00:03.1]} 41.
Rxh5 {[%clk 0:00:02.9]} 41... Kg7 {[%clk 0:00:02.6]} 42. Rg5+ {[%clk 0:00:02.7]}
42... Kf7 {[%clk 0:00:02.2]} 0-1

[Event "Late-Titled-Tuesday-Blitz-February-27-2024"]
[Site "Chess.com"]
[Date "2024.02.27"]
[Round "6"]
[White "BogdanDeac"]
[Black "chessdjw"]
[Result "1/2-1/2"]
[WhiteElo "2950"]
[BlackElo "2767"]
[TimeControl "180+1"]
[EndTime "15:06:16 PST"]
[Termination "Game drawn - insufficient material"]

1. d4 {[%clk 0:03:00.9]} 1... Nf6 {[%clk 0:02:59.3]} 2. c4 {[%clk 0:03:01.6]}
2... e6 {[%clk 0:02:59.6]} 3. Nf3 {[%clk 0:03:02.3]} 3... b6 {[%clk 0:02:59.6]}
4. g4 {[%clk 0:03:00.3]} 4... Nxg4 {[%clk 0:02:53.7]} 5. e4 {[%clk 0:02:59.6]}
5... Bb7 {[%clk 0:02:49.4]} 6. Rg1 {[%clk 0:02:57.1]} 6... f5 {[%clk 0:02:11.9]}
7. e5 {[%clk 0:02:41.2]} 7... Bb4+ {[%clk 0:02:07.5]} 8. Nc3 {[%clk 0:02:40.2]}
8... Bxf3 {[%clk 0:01:30.4]} 9. Qxf3 {[%clk 0:02:34.3]} 9... Nc6 {[%clk
0:01:31.1]} 10. Qf4 {[%clk 0:01:33.6]} 10... Qh4 {[%clk 0:01:09.1]} 11. h3
{[%clk 0:00:56]} 11... Nxd4 {[%clk 0:00:55.1]} 12. hxg4 {[%clk 0:00:07.5]} 12...
Nc2+ {[%clk 0:00:54.8]} 13. Kd1 {[%clk 0:00:07.7]} 13... Nxa1 {[%clk 0:00:54.8]}
14. Qf3 {[%clk 0:00:08]} 14... O-O {[%clk 0:00:51.7]} 15. g5 {[%clk 0:00:07.9]}
15... Qd4+ {[%clk 0:00:46.3]} 16. Bd2 {[%clk 0:00:08.1]} 16... Qxe5 {[%clk
0:00:42.1]} 17. Rh1 {[%clk 0:00:07.8]} 17... Bxc3 {[%clk 0:00:32.1]} 18. bxc3
{[%clk 0:00:03.9]} 18... Qe4 {[%clk 0:00:32.4]} 19. Qxe4 {[%clk 0:00:03.9]}
19... fxe4 {[%clk 0:00:32.5]} 20. Be3 {[%clk 0:00:04.6]} 20... Rf5 {[%clk
0:00:23.4]} 21. Kc1 {[%clk 0:00:03.4]} 21... Ra5 {[%clk 0:00:17.5]} 22. Kb2
{[%clk 0:00:03.3]} 22... Nc2 {[%clk 0:00:18]} 23. Kxc2 {[%clk 0:00:03.8]} 23...
Rxa2+ {[%clk 0:00:18.5]} 24. Kb1 {[%clk 0:00:04.4]} 24... Ra5 {[%clk 0:00:17.4]}
25. Bg2 {[%clk 0:00:04.3]} 25... d5 {[%clk 0:00:14.4]} 26. Bh3 {[%clk
0:00:04.5]} 26... Re8 {[%clk 0:00:14.4]} 27. Bg4 {[%clk 0:00:04.8]} 27... Rc5
{[%clk 0:00:13.8]} 28. Bxc5 {[%clk 0:00:04.5]} 28... bxc5 {[%clk 0:00:14.1]} 29.
Rd1 {[%clk 0:00:04.6]} 29... c6 {[%clk 0:00:14.1]} 30. Kc2 {[%clk 0:00:05.1]}
30... Kf7 {[%clk 0:00:14.2]} 31. Ra1 {[%clk 0:00:04.2]} 31... Re7 {[%clk
0:00:14.4]} 32. Ra6 {[%clk 0:00:04]} 32... Kg6 {[%clk 0:00:15]} 33. cxd5 {[%clk
0:00:04.1]} 33... cxd5 {[%clk 0:00:11.3]} 34. Bxe6 {[%clk 0:00:03.7]} 34... d4
{[%clk 0:00:09.1]} 35. cxd4 {[%clk 0:00:03.5]} 35... cxd4 {[%clk 0:00:10]} 36.
Kd2 {[%clk 0:00:03.8]} 36... Kxg5 {[%clk 0:00:10.4]} 37. Ke2 {[%clk 0:00:04.5]}
37... h5 {[%clk 0:00:10.1]} 38. Bd5 {[%clk 0:00:04.2]} 38... h4 {[%clk
0:00:06.4]} 39. Ra4 {[%clk 0:00:04.7]} 39... h3 {[%clk 0:00:04.8]} 40. Rxd4
{[%clk 0:00:04.9]} 40... h2 {[%clk 0:00:05.4]} 41. Rd1 {[%clk 0:00:05.5]} 41...
Rd7 {[%clk 0:00:05.7]} 42. Bxe4 {[%clk 0:00:05.4]} 42... Rxd1 {[%clk 0:00:06.3]}
43. Kxd1 {[%clk 0:00:06.1]} 43... Kf4 {[%clk 0:00:07]} 44. Bg2 {[%clk
0:00:06.3]} 44... g5 {[%clk 0:00:07.2]} 45. Kd2 {[%clk 0:00:06.5]} 45... g4
{[%clk 0:00:07.4]} 46. Kc3 {[%clk 0:00:06.9]} 46... g3 {[%clk 0:00:06.6]} 47.
fxg3+ {[%clk 0:00:07.2]} 47... Kxg3 {[%clk 0:00:07.1]} 48. Bc6 {[%clk
0:00:07.7]} 48... Kf2 {[%clk 0:00:07.5]} 49. Kb4 {[%clk 0:00:08]} 49... Kg1
{[%clk 0:00:08.1]} 50. Ka5 {[%clk 0:00:08.5]} 50... h1=Q {[%clk 0:00:09]} 51.
Bxh1 {[%clk 0:00:08.9]} 51... Kxh1 {[%clk 0:00:09.9]} 52. Ka6 {[%clk 0:00:09.5]}
52... Kg2 {[%clk 0:00:10.8]} 53. Kxa7 {[%clk 0:00:10.4]} 1/2-1/2